Cogmind - Beta 17.1 @@@ ROGUE MODE // 2026.09.02 @ 14:13:52 Player: Figgis Result: Destroyed by D-53 Grenadier with Mini Grenade Launcher Performance ------------- Evolutions (0) 0 Regions Visited (2) 400 Robots Destroyed (21) 105 Value Destroyed (481) 481 Prototype IDs (2) 40 Alien Tech Used (0) 0 Bonus (14) 14 TOTAL SCORE: 1040 Bonus ------- Follower Combat Kills 14 Cogmind --------- Core Integrity 0/250 Matter 300/300 Energy 84/100 System Corruption 0% Temperature Cool (0) Movement Core (50) Location -10/Mines Parts ------- > --- POWER (1) -------- (None) > --- PROPULSION (2) --- (None) > --- UTILITY (2) ------ Targeting Computer > --- WEAPON (2) ------- (None) > --- INVENTORY (5) ---- Ion Engine Light Treads EM Pulse Gun Light Assault Rifle Mini Grenade Launcher Peak State ------------ > --- POWER ------------ Ion Engine > --- PROPULSION ------- Light Treads Light Treads > --- UTILITY ---------- Small Storage Unit Targeting Computer > --- WEAPON ----------- Assault Rifle Light Assault Rifle > --- INVENTORY -------- Light Ion Engine Light Armor Plating Light Armor Plating EM Pulse Gun Small Laser Particle Gun Light Assault Rifle Mini Grenade Launcher [Rating: 8] Favorites ----------- Power Light Ion Engine Engine Light Ion Engine Propulsion Light Treads Treads Light Treads Utility Targeting Computer Storage Large Storage Unit Processor Targeting Computer Weapon Assault Rifle Energy Gun EM Pulse Gun Ballistic Gun Assault Rifle Ballistic Cannon Light Cannon Build | -11 -10 -10 ------- Run | Yrd Mat Min Slots Evolved . | . . . Power . | . . . Propulsion . | . . . Utility . | . . . Weapon . | . . . Parts Attached 14 | 3 10 1 Power 2 | . 2 . Engine 2 | . 2 . Core . | . . . Reactor . | . . . Propulsion 3 | 2 1 . Treads 3 | 2 1 . Leg . | . . . Wheel . | . . . Hover . | . . . Flight . | . . . Utility 3 | . 3 . Device . | . . . Storage 2 | . 2 . Processor 1 | . 1 . Hackware . | . . . Protection . | . . . Artifact . | . . . Weapon 6 | 1 4 1 Energy Gun 1 | . 1 . Energy Cannon . | . . . Ballistic Gun 3 | 1 2 . Ballistic Cannon 2 | . 1 1 Launcher . | . . . Special Weapon . | . . . Impact Weapon . | . . . Slashing Weapon . | . . . Piercing Weapon . | . . . Special Melee Weapon . | . . . Unidentified Prototypes . | . . . Parts Lost 4 | . . 4 Power 1 | . . 1 Propulsion 1 | . . 1 Utility . | . . . Weapon 2 | . . 2 Highest Loss Streak 4 | . . 4 To Critical Strikes . | . . . Average Backups 8 | 3 7 11 Power . | 1 . 1 Propulsion . | . . 1 Utility 1 | . 1 2 Weapon 4 | 1 4 7 Tool/Special . | . . . Unused Backups 8 | . 1 7 Power 1 | . . 1 Propulsion 1 | . 1 . Utility 2 | . . 2 Weapon 4 | . . 4 Tool/Special . | . . . Average Slot Usage (%) 96 | . 95 98 Engine 13 | . 13 13 Treads 27 | . 27 27 Storage 13 | . 13 14 Processor 11 | . 11 14 Ballistic Gun 17 | . 20 3 Ballistic Cannon 9 | . 7 23 Peak Build Rating 8 | 3 8 8 Average Rating 7 | 1 7 7 On Entrance 3 | . 3 8 Avg Prop Armor Cover (%) 31 | 31 31 . Naked Turns . | . . . Heaviest Build 29 | 1 28 29 Greatest Support 40 | 3 40 40 Greatest Overweight (x) 1 | . . 1 Average Overweight (x) . | . . . Largest Inventory Capacity 15 | 5 15 15 Average Capacity 12 | 5 11 14 Most Carried 12 | 5 10 12 Average Carried 8 | 3 7 11 Final Capacity 15 | 5 15 5 Final Carried 10 | 5 10 5 Class Distribution -------------------- 100% | Mutant Dominant Class ---------------- Mutant | -10/Materials Mutant | -10/Mines Resources | -11 -10 -10 ----------- Run | Yrd Mat Min Matter Collected 638 | 230 276 132 Remotely . | . . . Salvage Created 560 | . 510 50 Parts 44 | . 37 7 Haulers Intercepted 1 | . 1 . Recyclers Shooed 1 | . 1 . Parts Field Recycled . | . . . Retrieved Matter . | . . . Parts Self-Destructed . | . . . Prevented . | . . . Parts Restored . | . . . Kills | -11 -10 -10 ------- Run | Yrd Mat Min Combat Hostiles Destroyed 16 | . 12 4 Guns 11 | . 10 1 Cannons 5 | . 2 3 Classes Destroyed 5 | . 5 . Hauler 1 | . 1 . Operator 2 | . 2 . Watcher 2 | . 2 . Swarmer 7 | . 3 4 Grunt 9 | . 9 . Best Kill Streak 3 | . 3 3 Combat Bots Only 3 | . 3 3 Max Kills in Single Turn 1 | . 1 1 Gunslinging . | . . . Exploded . | . . . Melee . | . . . Uniques/NPCs Destroyed . | . . . Combat | -11 -10 -10 -------- Run | Yrd Mat Min Hostile Shots Fired 89 | . 56 33 Missed 17 | . 14 3 Hits 72 | . 42 30 Projectile 72 | . 42 30 AOE 9 | . . 9 Critical Strikes 2 | . 2 . Damage Taken 1036 | . 497 539 Core 252 | . 140 112 Absorbed by Shields . | . . . Regen/Repaired (Parts) 71 | . 71 . Core Remaining (%) 100 | 100 . . Volleys Fired 64 | . 54 10 Largest 2 | . 2 2 Hottest 60 | . 60 60 Shots Fired 128 | . 108 20 Gun 98 | . 91 7 Cannon 30 | . 17 13 Launcher . | . . . Special . | . . . Kinetic 127 | . 107 20 Thermal . | . . . Explosive . | . . . Electromagnetic 1 | . 1 . Robot Hit Streak 13 | . 13 4 Robot Miss Streak 5 | . 5 4 Penetration Max . | . . . Secondary Targets 1 | . 1 . Max Gunslinging Chain 1 | . 1 . Shots Hit Robots 80 | . 70 10 Core Hits 34 | . 31 3 Critical Kills 1 | . 1 . Critical Parts Destroyed . | . . . Critical Strikes 2 | . 2 . Destroy 1 | . 1 . Blast 1 | . 1 . Melee Attacks . | . . . Impact . | . . . Slashing . | . . . Piercing . | . . . Sneak Attacks . | . . . Combat Hostiles . | . . . Follow-up Attacks . | . . . Damage Inflicted 1018 | . 830 188 Guns 740 | . 686 54 Cannons 277 | . 143 134 Explosions . | . . . Melee . | . . . Ramming 1 | . 1 . Kinetic 1001 | . 813 188 Thermal . | . . . Explosive . | . . . Electromagnetic 16 | . 16 . Impact . | . . . Slashing . | . . . Piercing . | . . . Highest Corruption . | . . . Average Corruption . | . . . Corruption Purged . | . . . Corruption Blocked . | . . . Overload Shots . | . . . Overflow Damage 17 | . 6 11 Projectiles 17 | . 6 11 Explosions . | . . . Melee . | . . . Knockbacks 2 | . . 2 Impact . | . . . Kinetic 2 | . . 2 Secondary . | . . . Self-Inflicted Damage . | . . . Shots . | . . . Rammed 2 | . 2 . Targets Rammed 2 | . 2 . Kicked . | . . . Crushed . | . . . Highest Temperature 36 | . 36 . Average Temperature 9 | . 9 . Received Heat Transfer 273 | . 273 . Siege Activations . | . . . Martial Activations . | . . . Shielding Activations . | . . . Robots Disrupted . | . . . Combat Hostiles . | . . . Robots Corrupted . | . . . Combat Hostiles . | . . . Parts Fried . | . . . Impact Corruptions . | . . . Robots Melted . | . . . Combat Hostiles . | . . . Parts Melted . | . . . Heat Transferred . | . . . Parts Sabotaged . | . . . Parts Stolen . | . . . Parts Stripped . | . . . Power Chain Reactions . | . . . Alert | -11 -10 -10 ------- Run | Yrd Mat Min Maximum Alert Level . | . . . Low Security (%) 100 | 100 100 100 Level 1 . | . . . Level 2 . | . . . Level 3 . | . . . Level 4 . | . . . Level 5 . | . . . High Security . | . . . Max Security . | . . . Peak Influence 103 | . 103 77 Initial 7 | . . 7 Average 32 | . 31 37 Influence Increases 536 | . 392 144 Destroy 0b10 Robot/C 360 | . 240 120 Destroy 0b10 Robot/NC 25 | . 25 . Destroy Leader 76 | . 56 20 Allied During Kill 4 | . . 4 Successful Hack 40 | . 40 . Destroy Structure 1 | . 1 . Lose Combat Pursuer 30 | . 30 . Influence Decreases 536 | . 373 163 Entered New Map 12 | . . 12 Time Decay 480 | . 373 107 Lost Part 30 | . . 30 Lost Ally 14 | . . 14 Squads Dispatched 2 | . 2 . Investigation . | . . . Extermination . | . . . Reinforcement 2 | . 2 . Assault . | . . . Garrison . | . . . Intercept . | . . . Searches Triggered . | . . . Construction Impeded . | . . . Haulers Reinforced . | . . . Active Scanning Responses . | . . . Cargo Convoy Interrupts . | . . . Stealth | -11 -10 -10 --------- Run | Yrd Mat Min Distress Signals . | . . . Communications Jammed . | . . . Distress Signals . | . . . Times Spotted 41 | . 28 13 Peak Tracking Total 7 | . 4 7 Tactical Retreats 2 | . 2 . Traps | -11 -10 -10 ------- Run | Yrd Mat Min Traps Triggered . | . . . Indirectly . | . . . Trap Hack Attempts . | . . . Triggered . | . . . Disarmed . | . . . Reprogrammed . | . . . Reused . | . . . Traps Extracted . | . . . Installed . | . . . Triggered . | . . . Machines | -11 -10 -10 ---------- Run | Yrd Mat Min Machines Disabled . | . . . Max in Single Turn . | . . . Machines Repaired . | . . . Machines Dismantled . | . . . Machines Sabotaged . | . . . Overloaded Fab Kills . | . . . Hacking | -11 -10 -10 --------- Run | Yrd Mat Min Machines Accessed 8 | . 8 . Terminals 6 | . 6 . Fabricators . | . . . Repair Stations 1 | . 1 . Recycling Units 1 | . 1 . Scanalyzers . | . . . Garrison Access . | . . . Total Hacks 24 | . 24 . Successful 8 | . 8 . Failed 16 | . 16 . Catastrophic 1 | . 1 . Database Lockouts . | . . . Manual 11 | . 11 . Terminals 17 | . 17 . Fabricators . | . . . Repair Stations 5 | . 5 . Recycling Units 2 | . 2 . Scanalyzers . | . . . Garrison Access . | . . . Terminal Hacks 5 | . 5 . Robot Analysis 3 | . 3 . Prototype ID Bank 1 | . 1 . Zone Layout 1 | . 1 . Fabricator Hacks . | . . . Repair Station Hacks 2 | . 2 . Scan Component 1 | . 1 . Repair 1 | . 1 . Recycling Unit Hacks 1 | . 1 . Report Inventory 1 | . 1 . Scanalyzer . | . . . Garrison Access Hacks . | . . . Unauthorized Hacks . | . . . Terminals . | . . . Fabricators . | . . . Repair Stations . | . . . Recycling Units . | . . . Scanalyzers . | . . . Garrison Access . | . . . Data Cores Recovered 1 | . 1 . Used . | . . . Hacking Detections 7 | . 7 . Full Trace Events . | . . . Feedback Events . | . . . Feedback Blocked . | . . . Robot Schematics Acquired . | . . . Robots Built . | . . . Authchips . | . . . Time . | . . . Total Robot Build Rating . | . . . Part Schematics Acquired . | . . . Parts Built . | . . . Authchips . | . . . Time . | . . . Total Part Build Rating . | . . . Part Studies Acquired . | . . . Parts Repaired 1 | . 1 . Time 13 | . 13 . Parts Recycled . | . . . Recycled Matter . | . . . Retrieved Matter . | . . . Retrieved Components . | . . . Parts Scanalyzed . | . . . Part Schematics Acquired . | . . . Parts Damaged . | . . . Bothacking | -11 -10 -10 ------------ Run | Yrd Mat Min Used RIF Installer . | . . . Robots Hacked . | . . . Non-combat . | . . . Combat . | . . . Robot Hacks Applied . | . . . Relay Couplers Released . | . . . Fabnet Peak Effective % . | . . . Robots Rewired . | . . . Allies Hacked . | . . . Hacks Repelled . | . . . Allies | -11 -10 -10 -------- Run | Yrd Mat Min Total Allies 1 | . . 1 Largest Group 1 | . . 1 Highest-Rated Group 31 | . . 31 Highest-Rated Ally 31 | . . 31 Total Orders . | . . . Ally Attacks 11 | . . 11 Total Damage 106 | . . 106 Kills 4 | . . 4 Allies Corrupted . | . . . Allies Melted . | . . . Intel | -11 -10 -10 ------- Run | Yrd Mat Min Active Infowar (turns) . | . . . Robot Analysis Total 3 | . 3 . Derelict Logs Recovered 2 | . . 2 Drone Launches . | . . . Drone Recoveries . | . . . Exploration | -11 -10 -10 ------------- Run | Yrd Mat Min Turns Passed 1502 | 26 1242 234 Spaces Moved 776 | 34 619 123 Core 87 | 34 52 1 Treads 689 | . 567 122 Legs . | . . . Wheels . | . . . Hover . | . . . Flight . | . . . Fastest Speed 50 | 50 50 50 Average Speed 147 | 50 150 161 Slowest Speed 240 | 50 160 240 Overloaded Moves . | . . . Propulsion Burnouts . | . . . Robots Hopped . | . . . Potential Cave-ins . | . . . Cave-ins Triggered . | . . . Exploration Rate (%) 41 | 3 89 32 Regions Visited 2 Branch Regions 1 Pre-discovered Areas 1 | . . 1 Known Exits Taken . | . . . Unknown Exits Taken 2 | 1 1 . Scrap Searched 1 | . . 1 Spaces Dug . | . . . Terrain Destroyed . | . . . Melee . | . . . Projectile . | . . . AOE . | . . . Terrain Rammed . | . . . Walls Destroyed . | . . . Machines Disabled . | . . . Actions | -11 -10 -10 --------- Run | Yrd Mat Min Total 1009 | 41 829 139 Wait 130 | . 129 1 Move 774 | 33 618 123 Hop . | . . . Pick Up 19 | 5 12 2 Fast Attach 4 | 3 1 . Attach 5 | . 5 . Detach 1 | . 1 . Swap 5 | . 4 1 Drop 5 | . 3 2 Fire 64 | . 54 10 Melee . | . . . Ram . | . . . Kick . | . . . Crush 2 | . 2 . Escape Stasis . | . . . Rewire . | . . . Trap . | . . . Miscellaneous . | . . . Route ------- -11/Scrapyard -10/Materials (discovered 4 exits: [*Mat x3] / [*Min]) -10/Mines History --------- Turn | Location | Event 10 | -11/Scrapyard | Discovered new exit (range 15) 27 | -11/Scrapyard | Entered Materials 311 | -10/Materials | Build established: Mutant 358 | -10/Materials | Discovered new exit (range 11) 440 | -10/Materials | Discovered new exit (range 11) 734 | -10/Materials | Repaired Lgt. Treads 783 | -10/Materials | Discovered new exit (range 15) 830 | -10/Materials | Core integrity fell below 50% 1137 | -10/Materials | Discovered new exit (range 12) 1269 | -10/Materials | Entered Mines 1318 | -10/Mines | Found DCF Scrap (10 items) 1330 | -10/Mines | Received a Mining Laser from a helpful Derelict 1336 | -10/Mines | Learned Materials stockpile data 1454 | -10/Mines | Assembled infested the area 1459 | -10/Mines | Assisted by a Guerilla fighting off Assembled 1499 | -10/Mines | Core integrity fell below 20% 1503 | -10/Mines | Destroyed by D-53 Grenadier with Mini Grenade Launcher Last Messages --------------- 01490_ Lgt. Cannon destroyed. 01492_ HV Slug penetrates D-53 Grenadier. 01492_ D-53 Grenadier suffers critical hit (Destroy). 01492_ D-53 Grenadier destroyed. 01492_ 8F-CJM(h) destroyed. 01492_ Lgt. Ion Engine destroyed. 01493_ The unstable cave ceiling collapses. 01493_ K-01 Serf collects debris. 01494_ Lgt. Treads destroyed. 01495_ ER-ASV(g) destroyed. 01496_ K-01 Serf collects debris. 01496_ T-07 Excavator destroyed. 01497_ The unstable cave ceiling collapses. 01499_ K-01 Serf collects debris. 01500_ Lgt. Cannon destroyed. 01501_ The unstable cave ceiling collapses. 01502_ Dropped Lgt. Treads. 01502_ Dropped Lrg. Storage Unit. 01502_ K-01 Serf collects debris. 01503_ The unstable cave ceiling collapses. Map ----- +----------------------------------------------------+ | ?????????????????????????????????????????????????? | | ?????????????????????????????????????????????????? | | ?????????????????????????????????????????????????? | | ?????????????????????????????????????????????????? | | ?????????####????????????????????????????????????? | | ????????## ##???????????????????????????????????? | | ????????# ##?????????????????????#????????????? | | ????????# ###########??????????? #???????????? | | ????????# ![ %|!==* #??????????? ##?????????? | | ????????# #########*#??####????? ?????????? | | ????????# ########## #### ##???? ??????????? | | ????????# ##?# =* ## #???? ??????????? | | ????????# #??#[ ## #????# ??????????? | | ????????## ##?# """ #????# #????????### | | ?????????## ### = """ ## ##????# #???????# | | ??????????## ## [ """ ## #?????# #??##### | | ??????????## ## """ ## #???### #### | | ?????????## ## ## ##??# | | ?????????# ########### ##?# % | | ?????????# #???????# ### #### % = % | | ?????????## #???????## ## %#??# [%* | | ??????????# ##?????### ##%!#??# | | ??????????## ##??????# a= #??# | | ???????????#####???????# # ! #??# | | ?????????????????####### !=! % ####?? | | ?????????? |@*[ [= #?? ## | | ?????????????????####### [[[ #? ##?# | | ???????????????????????## # ##???# | | ???????????????????????# % # # #?????# | | ???????????????????????### # ?????? | | ?????????????????????????### # ????? | | ???????????????????????????## d ## ?????? | | ????????????????????????????# ##### ?????? | | ????????????????????????????# ;#???### #?????? | | ????????????????????????????# k##?????###??????? | | ????????????????????????????# %!???????????????? | | ????????????????????????????## #??????????????? | | ?????????????????????????????### #??????????????? | | ???????????????????????????????? #??????????????? | | ???????????????????????????????? #??????????????? | | ???????????????????????????????? #??????????????? | | ???????????????????????????????? ???????????????? | | ?????????????????????????????????????????????????? | | ?????????????????????????????????????????????????? | | ?????????????????????????????????????????????????? | | ?????????????????????????????????????????????????? | | ?????????????????????????????????????????????????? | | ?????????????????????????????????????????????????? | | ?????????????????????????????????????????????????? | | ?????????????????????????????????????????????????? | +----------------------------------------------------+ Best States ------------- Heat Dissipation 25 Energy Generation 10 Energy Capacity 250 Matter Stores 300 Matter Capacity 300 Sight Range 16 Terrain Scan Density 10 Evasion (%) 50 Targeting Accuracy 5 Recoil Reduction 2 Item Schematics ----------------- None Robot Schematics ------------------ None Fabricated ------------ Nothing Repaired ---------- Lgt. Treads | 49% | -10/Materials Studied --------- None Alien Tech Used ----------------- None Achievements -------------- Ghost 'Em Challenges ------------ None Game ------ Seed VisualPiercelightEdition Manual? 0 Play Time 00:11:21 Cumulative 211.7 hours Start 2026.09.02 @ 14:04:11 End 2026.09.02 @ 14:13:52 Sessions 1 Manual Loads 0 Difficulty Rogue Special Mode None Game No. 337 Rogue 334 Adventurer 3 Explorer 0 Win Type - Total 1 Types 1/0/0/0/0/0/0/0/0/0 Lore% 65 Gallery% 56 Achievement% 29 Wizard Run 0 Options --------- Layout 0 ASCII 0 Keyboard 0 Movement Mouse Keybinds 0 Fullscreen 2 Font 18/SmallcapsGlow Map View 76x50 Zoom Use 0% Tactical HUD 1 Map Filters NONE Filters NONE Steam 1 RUN: 47880ca0-e000-46ed-bc9f-5b2905024483